lending/lending_fUSD_20250318
["ID","MTS","AMOUNT","RATE_DAILY","PERIOD"]
[356376897,1742339629677,-657.42,0.00044657,120]
[356376898,1742339629687,-500.0,0.00044657,120]
[356376899,1742339629697,-1197.86,0.00044657,120]
[356376900,1742339629706,-1514.57,0.00044657,120]
[356376901,1742339629716,-500.0,0.00044657,120]
[356376902,1742339629726,-500.0,0.00044657,120]
[356376903,1742339629735,-1264.5,0.00044657,120]
[356376904,1742339629745,-500.0,0.00044657,2]
[356376905,1742339629756,-500.0,0.00044657,120]
[356376906,1742339629766,-500.0,0.00044657,120]
[356376907,1742339629776,-677.1,0.00044657,120]
[356376908,1742339629787,-538.01,0.00044657,120]
[356376909,1742339629797,-1026.81,0.00044657,120]
[356376910,1742339629807,-500.0,0.00044657,120]
[356376911,1742339629820,-1290.9,0.00044657,120]
[356376912,1742339629830,-258.42,0.00044716,120]
[356376913,1742339629841,-2000.0,0.00044767,8]
[356376914,1742339629851,-5150.0,0.0004488,28]
[356376915,1742339629862,-5150.0,0.0004488,29]
[356376916,1742339629872,-5150.0,0.0004488,27]
[356376917,1742339629882,-4535.237,0.0004488,30]
[356376918,1742339629893,-5150.0,0.0004488,32]
[356376919,1742339629904,-5150.0,0.0004488,34]
[356376920,1742339629914,-234.04528755,0.000449,30]
[356376921,1742339629924,-340.20334,0.000449,120]
[356376922,1742339629935,-150.0,0.000449,120]
[356376923,1742339629945,-188.16991,0.000449,120]
[356376924,1742339629956,-558022.20411598,0.000449,2]
[356376925,1742339629966,-10139716.29120621,0.000449,2]
[356376926,1742339629976,-414.60641442,0.000449,120]
[356376927,1742339629986,-414.60641442,0.000449,120]
[356376928,1742339629996,-414.60641442,0.000449,120]
[356376929,1742339630007,-414.60641442,0.000449,120]
[356376930,1742339630016,-414.60641442,0.000449,120]
[356376931,1742339630026,-414.60641442,0.000449,120]
[356376932,1742339630037,-414.60641442,0.000449,120]
[356376933,1742339630046,-414.60641442,0.000449,120]
[356376934,1742339630056,-414.60641442,0.000449,120]
[356376935,1742339630066,-414.60641442,0.000449,120]
[356376936,1742339630075,-414.60641442,0.000449,120]
[356376937,1742339630085,-414.60641442,0.000449,120]
[356376938,1742339630095,-414.60641442,0.000449,120]
[356376939,1742339630105,-414.60641442,0.000449,120]
[356376940,1742339630114,-414.60641442,0.000449,120]
[356376941,1742339630124,-414.60641442,0.000449,120]
[356376942,1742339630134,-414.60641442,0.000449,120]
[356376943,1742339630144,-414.60641442,0.000449,120]
[356376944,1742339630154,-414.60641442,0.000449,120]
[356376945,1742339630163,-509.82,0.00044927,120]
[356376946,1742339630173,-588.39,0.00044931,120]
[356376947,1742339630183,-500.0,0.00044931,120]
[356376948,1742339630193,-695.53,0.00044931,120]
[356376949,1742339630202,-500.0,0.00044931,120]
[356376950,1742339630212,-599.27,0.00044931,120]
[356376951,1742339630222,-500.0,0.00044931,120]
[356376952,1742339630232,-675.48,0.00044931,120]
[356376953,1742339630241,-2951.2,0.00044931,120]
[356376954,1742339630252,-3587.64,0.00044931,120]
[356376955,1742339630262,-731.85,0.00044931,120]
[356376956,1742339630272,-500.0,0.00044931,120]
[356376957,1742339630282,-1000.25,0.00044931,120]
[356376958,1742339630291,-500.0,0.00044931,120]
[356376959,1742339630302,-500.0,0.00044931,120]
[356376960,1742339630312,-4954.91,0.00044931,120]
[356376961,1742339630322,-515.86,0.00044931,120]
[356376962,1742339630331,-1142.14,0.00044931,120]
[356376963,1742339630341,-1372.58,0.00044931,120]
[356376964,1742339630351,-500.0,0.00044931,120]
[356376965,1742339630361,-2157.42,0.00044931,120]
[356376966,1742339630371,-500.0,0.00044931,120]
[356376967,1742339630380,-1414.54,0.00044931,120]
[356376968,1742339630390,-1247.27,0.00044931,120]
[356376969,1742339630400,-571.9,0.00044931,120]
[356376970,1742339630410,-1731.09,0.00044931,120]
[356376971,1742339630420,-500.0,0.00044931,120]
[356376972,1742339630430,-690.54,0.00044931,120]
[356376973,1742339630440,-1601.13,0.00044931,120]
[356376974,1742339630450,-647.8,0.00044931,120]
[356376975,1742339630460,-619.12,0.00044931,120]
[356376976,1742339630712,-500.0,0.00044931,120]
[356376977,1742339630734,-657.42,0.00044931,120]
[356376978,1742339630743,-500.0,0.00044931,120]
[356376979,1742339630753,-1197.86,0.00044931,120]
[356376980,1742339630763,-1514.57,0.00044931,120]
[356376981,1742339630772,-500.0,0.00044931,120]
[356376982,1742339630782,-500.0,0.00044931,120]
[356376983,1742339630791,-1264.5,0.00044931,120]
[356376984,1742339630801,-500.0,0.00044931,2]
[356376985,1742339630811,-500.0,0.00044931,120]
[356376986,1742339630822,-337.37992099,0.00044931,120]
[356376987,1742339630832,-677.1,0.00044931,120]
[356376988,1742339630842,-538.01,0.00044931,120]
[356376989,1742339630851,-1026.81,0.00044931,120]
[356376990,1742339630863,-500.0,0.00044931,120]
[356376991,1742339630872,-1290.9,0.00044931,120]
[356376992,1742339630881,-50000.0,0.00045,45]
[356376993,1742339630891,-40000.0,0.00045,7]
[356376994,1742339630902,-5000.0,0.00045,2]
[356376995,1742339630912,-50000.0,0.00045,27]
[356376996,1742339630921,-1000.0,0.00045,2]
[356376997,1742339630931,-1000.0,0.00045,120]
[356376998,1742339630941,-235.38372184,0.00045,120]
[356376999,1742339630950,-2343.33795038,0.00045,120]
[356377000,1742339630960,-2650.49,0.00045,120]
[356377001,1742339630971,-700.08209793,0.00045,120]
[356377002,1742339630981,-852.45622797,0.00045,120]
[356377003,1742339630991,-151.0,0.00045,120]
[356377004,1742339631001,-486.0,0.00045,120]
[356377005,1742339631010,-1642.756248,0.00045,50]
[356377006,1742339631019,-189.90539594,0.00045,120]
[356377007,1742339631029,-307.22063171,0.00045,30]
[356377008,1742339631038,-400.0,0.00045,30]
[356377009,1742339631048,-1000000.0,0.00045,120]
[356377010,1742339631058,-10468.00544568,0.00045,120]
[356377011,1742339631067,-3135.8327121,0.00045,120]
[356377012,1742339631076,-3005.0,0.00045,30]
[356377013,1742339631086,-2219.52082575,0.00045,60]
[356377014,1742339631095,-1001.51,0.00045,120]
[356377015,1742339631105,-421.67319537,0.00045,2]
[356377016,1742339631114,-22080.85508291,0.00045,120]
[356377017,1742339631124,-49134.23273884,0.00045,120]
[356377018,1742339631133,-45459.53469534,0.00045,20]
[356377019,1742339631143,-1000.0,0.00045,10]
[356377020,1742339631152,-200.0,0.00045,120]
[356377021,1742339631162,-151.0,0.00045,120]
[356377022,1742339631171,-136992.0,0.00045,120]
[356377023,1742339631181,-5489432.2821872,0.00045,2]
[356377024,1742339631191,-157.9,0.00045,85]
[356377025,1742339631200,-1000.0,0.00045,2]
[356377026,1742339631210,-588.39,0.00045205,120]
[356377027,1742339631219,-500.0,0.00045205,120]
[356377028,1742339631228,-695.53,0.00045205,120]
[356377029,1742339631237,-500.0,0.00045205,120]
[356377030,1742339631247,-599.27,0.00045205,120]
[356377031,1742339631256,-500.0,0.00045205,120]
[356377032,1742339631265,-675.48,0.00045205,120]
[356377033,1742339631274,-2951.2,0.00045205,120]
[356377034,1742339631283,-3587.64,0.00045205,120]
[356377035,1742339631292,-731.85,0.00045205,120]
[356377036,1742339631301,-500.0,0.00045205,120]
[356377037,1742339631311,-1000.25,0.00045205,120]
[356377038,1742339631320,-500.0,0.00045205,120]
[356377039,1742339631329,-500.0,0.00045205,120]
[356377040,1742339631339,-4954.91,0.00045205,120]
[356377041,1742339631348,-515.86,0.00045205,120]
[356377042,1742339631357,-1142.14,0.00045205,120]
[356377043,1742339631366,-1372.58,0.00045205,120]
[356377044,1742339631375,-500.0,0.00045205,120]
[356377045,1742339631385,-2157.42,0.00045205,120]
[356377046,1742339631394,-500.0,0.00045205,120]
[356377047,1742339631403,-1414.54,0.00045205,120]
[356377048,1742339631413,-1247.27,0.00045205,120]
[356377049,1742339631422,-571.9,0.00045205,120]
[356377050,1742339631431,-1731.09,0.00045205,120]
[356377051,1742339631440,-500.0,0.00045205,120]
[356377052,1742339631450,-690.54,0.00045205,120]
[356377053,1742339631459,-1601.13,0.00045205,120]
[356377054,1742339631469,-647.8,0.00045205,120]
[356377055,1742339631478,-619.12,0.00045205,120]
[356377056,1742339631487,-500.0,0.00045205,120]
[356377057,1742339631497,-657.42,0.00045205,120]
[356377058,1742339631506,-500.0,0.00045205,120]
[356377059,1742339631515,-1197.86,0.00045205,120]
[356377060,1742339631524,-1514.57,0.00045205,120]
[356377061,1742339631534,-500.0,0.00045205,120]
[356377062,1742339631543,-500.0,0.00045205,120]
[356377063,1742339631553,-1264.5,0.00045205,120]
[356377064,1742339631562,-500.0,0.00045205,120]
[356377065,1742339631571,-677.1,0.00045205,120]
[356377066,1742339631580,-538.01,0.00045205,120]
[356377067,1742339631590,-1026.81,0.00045205,120]
[356377068,1742339631599,-500.0,0.00045205,120]
[356377069,1742339631608,-1290.9,0.00045205,120]
[356377070,1742339631618,-352.57,0.00045205,120]
[356377071,1742339631628,-352.57,0.00045205,120]
[356377072,1742339631638,-352.57,0.00045205,120]
[356377073,1742339631647,-352.57,0.00045205,120]
[356377074,1742339631656,-352.57,0.00045205,120]
[356377075,1742339631666,-352.57,0.00045205,120]
[356377076,1742339631675,-352.57,0.00045205,120]
[356377077,1742339631685,-352.57,0.00045205,120]
[356377078,1742339631694,-352.57,0.00045205,120]
[356377079,1742339631704,-352.57,0.00045205,120]
[356377080,1742339631714,-352.57,0.00045205,120]
[356377081,1742339631723,-352.57,0.00045205,120]
[356377082,1742339631733,-352.57,0.00045205,120]
[356377083,1742339631743,-352.57,0.00045205,120]
[356377084,1742339631753,-352.57,0.00045205,120]
[356377085,1742339631762,-352.57,0.00045205,120]
[356377086,1742339631772,-352.57,0.00045205,120]
[356377087,1742339631781,-352.57,0.00045205,120]
[356377088,1742339631790,-352.57,0.00045205,120]
[356377089,1742339631799,-352.57,0.00045205,120]
[356377090,1742339631809,-352.57,0.00045205,120]
[356377091,1742339631822,-352.57,0.00045205,120]
[356377092,1742339631831,-352.57,0.00045205,120]
[356377093,1742339631840,-352.60363931,0.00045205,120]
[356377094,1742339631850,-999.0,0.00045205,120]
[356377095,1742339631859,-500.0,0.00045205,120]
[356377096,1742339631868,-3934.50168441,0.0004521,120]
[356377097,1742339631878,-5231.87818588,0.0004521,120]
[356377098,1742339631888,-5231.87818588,0.0004521,120]
[356377099,1742339631897,-5231.87818588,0.0004521,120]
[356377100,1742339631907,-5231.87818588,0.0004521,120]
[356377101,1742339631916,-5231.87818588,0.0004521,120]
[356377102,1742339631925,-5231.87818588,0.0004521,120]
[356377103,1742339631935,-5231.87818588,0.0004521,120]
[356377104,1742339631944,-5231.87818588,0.0004521,120]
[356377105,1742339631954,-5231.87818588,0.0004521,120]
[356377106,1742339631963,-5231.87818588,0.0004521,120]
[356377107,1742339631972,-5231.87818588,0.0004521,120]
[356377108,1742339631982,-5231.87818588,0.0004521,120]
[356377109,1742339631991,-5231.87818588,0.0004521,120]
[356377110,1742339632000,-5231.87818588,0.0004521,120]
[356377111,1742339632010,-5231.87818588,0.0004521,120]
[356377112,1742339632021,-5231.87818588,0.0004521,120]
[356377113,1742339632030,-5231.87818588,0.0004521,120]
[356377114,1742339632039,-5231.87818588,0.0004521,120]
[356377115,1742339632049,-5231.87818588,0.0004521,120]
[356377116,1742339632058,-5231.87,0.0004521,120]
[356377117,1742339632067,-2764.4579377,0.0004521,120]
[356377118,1742339632076,-2764.4579377,0.0004521,120]
[356377119,1742339632085,-2764.4579377,0.0004521,120]
[356377120,1742339632095,-2764.4579377,0.0004521,120]
[356377121,1742339632104,-2764.4579377,0.0004521,120]
[356377122,1742339632113,-2764.4579377,0.0004521,120]
[356377123,1742339632122,-2764.4579377,0.0004521,120]
[356377124,1742339632132,-2764.4579377,0.0004521,120]
[356377125,1742339632141,-2764.4579377,0.0004521,120]
[356377126,1742339632151,-2764.4579377,0.0004521,120]
[356377127,1742339632160,-2764.4579377,0.0004521,120]
[356377128,1742339632169,-2764.4579377,0.0004521,120]
[356377129,1742339632178,-2764.4579377,0.0004521,120]
[356377130,1742339632188,-2764.4579377,0.0004521,120]
[356377131,1742339632197,-2764.4579377,0.0004521,120]
[356377132,1742339632206,-2764.4579377,0.0004521,120]
[356377133,1742339632216,-2764.4579377,0.0004521,120]
[356377134,1742339632226,-2764.4579377,0.0004521,120]
[356377135,1742339632235,-2764.4579377,0.0004521,120]
[356377136,1742339632245,-2764.45,0.0004521,120]
[356377137,1742339632255,-268.57223292,0.000453,120]
[356377138,1742339632264,-524.31716385,0.00045314,10]
[356377139,1742339632274,-10000.0,0.000454,120]
[356377140,1742339632283,-36269.0,0.0004545,3]
[356377141,1742339632293,-588.39,0.00045479,120]
[356377142,1742339632303,-500.0,0.00045479,120]
[356377143,1742339632313,-695.53,0.00045479,120]
[356377144,1742339632323,-500.0,0.00045479,120]
[356377145,1742339632333,-599.27,0.00045479,120]
[356377146,1742339632343,-500.0,0.00045479,120]
[356377147,1742339632353,-675.48,0.00045479,120]
[356377148,1742339632363,-2951.2,0.00045479,120]
[356377149,1742339632372,-3587.64,0.00045479,120]
[356377150,1742339632381,-731.85,0.00045479,120]
[356377151,1742339632392,-500.0,0.00045479,120]
[356377152,1742339632401,-1000.25,0.00045479,120]
[356377153,1742339632411,-500.0,0.00045479,120]
[356377154,1742339632420,-500.0,0.00045479,120]
[356377155,1742339632430,-4954.91,0.00045479,120]
[356377156,1742339632439,-515.86,0.00045479,120]
[356377157,1742339632448,-1142.14,0.00045479,120]
[356377158,1742339632457,-1372.58,0.00045479,120]
[356377159,1742339632465,-508.83354788,0.00045479,120]
[356377160,1742339632475,-2157.42,0.00045479,120]
[356377161,1742339632484,-500.0,0.00045479,120]
[356377162,1742339632493,-1414.54,0.00045479,120]
[356377163,1742339632505,-1247.27,0.00045479,120]
[356377164,1742339632514,-571.9,0.00045479,120]
[356377165,1742339632523,-1731.09,0.00045479,120]
[356377166,1742339632533,-500.0,0.00045479,120]
[356377167,1742339632542,-690.54,0.00045479,120]
[356377168,1742339632551,-1601.13,0.00045479,120]
[356377169,1742339632561,-647.8,0.00045479,120]
[356377170,1742339632570,-619.12,0.00045479,120]
[356377171,1742339632579,-500.0,0.00045479,120]
[356377172,1742339632588,-657.42,0.00045479,120]
[356377173,1742339632597,-502.85789086,0.00045479,120]
[356377174,1742339632607,-1197.86,0.00045479,120]
[356377175,1742339632616,-1514.57,0.00045479,120]
[356377176,1742339632625,-500.0,0.00045479,120]
[356377177,1742339632634,-500.0,0.00045479,120]
[356377178,1742339632643,-1264.5,0.00045479,120]
[356377179,1742339632652,-500.0,0.00045479,120]
[356377180,1742339632662,-677.1,0.00045479,120]
[356377181,1742339632673,-538.01,0.00045479,120]
[356377182,1742339632683,-1026.81,0.00045479,120]
[356377183,1742339632692,-155.25448684,0.00045479,120]
[356377184,1742339632702,-1290.9,0.00045479,120]
[356377185,1742339632711,-150.0,0.00045484,120]
[356377186,1742339632720,-50000.0,0.000455,27]
[356377187,1742339632729,-5711.29243342,0.000455,120]
[356377188,1742339632738,-158.0,0.000455,120]
[356377189,1742339632747,-1621.80803319,0.000456,120]
[356377190,1742339632764,-999.0,0.00045616,120]
[356377191,1742339632783,-346.02921254,0.00045681,30]
[356377192,1742339632801,-576.3068894,0.00045692,30]
[356377193,1742339632822,-3702.22143121,0.00045696,30]
[356377194,1742339632838,-8239.58174919,0.000457,30]
[356377195,1742339632857,-346.02921254,0.00045702,30]
[356377196,1742339632877,-5926.74189602,0.00045704,30]
[356377197,1742339632898,-381.68,0.0004572,90]
[356377198,1742339632916,-203.54380946,0.00045725,30]
[356377199,1742339632935,-262.35821465,0.00045727,30]
[356377200,1742339632952,-3702.22143121,0.00045727,30]
[356377201,1742339632967,-5926.74189602,0.00045731,30]
[356377202,1742339632985,-576.3068894,0.00045733,30]
[356377203,1742339632999,-8348.40948344,0.00045736,30]
[356377204,1742339633014,-23409.78734323,0.00045737,30]
[356377205,1742339633029,-576.3068894,0.00045738,30]
[356377206,1742339633044,-3702.22143121,0.0004575,30]
[356377207,1742339633065,-588.39,0.00045753,120]
[356377208,1742339633080,-500.0,0.00045753,120]
[356377209,1742339633095,-695.53,0.00045753,120]
[356377210,1742339633111,-500.0,0.00045753,120]
[356377211,1742339633126,-599.27,0.00045753,120]
[356377212,1742339633141,-500.0,0.00045753,120]
[356377213,1742339633155,-675.48,0.00045753,120]
[356377214,1742339633169,-2951.2,0.00045753,120]
[356377215,1742339633183,-3587.64,0.00045753,120]
[356377216,1742339633199,-731.85,0.00045753,120]
[356377217,1742339633215,-500.0,0.00045753,120]
[356377218,1742339633231,-1000.25,0.00045753,120]
[356377219,1742339633245,-500.0,0.00045753,120]
[356377220,1742339633261,-594.40845396,0.00045753,120]
[356377221,1742339633275,-4954.91,0.00045753,120]
[356377222,1742339633290,-515.86,0.00045753,120]
[356377223,1742339633305,-1142.14,0.00045753,120]
[356377224,1742339633320,-1372.58,0.00045753,120]
[356377225,1742339633337,-2157.42,0.00045753,120]
[356377226,1742339633352,-500.0,0.00045753,120]
[356377227,1742339633367,-1414.54,0.00045753,120]
[356377228,1742339633382,-1247.27,0.00045753,120]
[356377229,1742339633397,-571.9,0.00045753,120]
[356377230,1742339633411,-1731.09,0.00045753,120]
[356377231,1742339633425,-500.0,0.00045753,120]
[356377232,1742339633440,-690.54,0.00045753,120]
[356377233,1742339633456,-1601.13,0.00045753,120]
[356377234,1742339633471,-647.8,0.00045753,120]
[356377235,1742339633487,-619.12,0.00045753,120]
[356377236,1742339633502,-500.0,0.00045753,120]
[356377237,1742339633516,-657.42,0.00045753,120]
[356377238,1742339633530,-1197.86,0.00045753,120]
[356377239,1742339633544,-1514.57,0.00045753,120]
[356377240,1742339633557,-500.0,0.00045753,120]
[356377241,1742339633571,-500.0,0.00045753,120]
[356377242,1742339633586,-1264.5,0.00045753,120]
[356377243,1742339633601,-500.0,0.00045753,120]
[356377244,1742339633615,-677.1,0.00045753,120]
[356377245,1742339633630,-538.01,0.00045753,120]
[356377246,1742339633644,-1026.81,0.00045753,120]
[356377247,1742339633657,-1290.9,0.00045753,120]
[356377248,1742339633670,-8348.40948344,0.00045762,30]
[356377249,1742339633683,-262.35821465,0.00045779,30]
[356377250,1742339633697,-1707.24526954,0.00045791,30]
[356377251,1742339633710,-855.46832933,0.00045795,30]
[356377252,1742339633725,-855.46832933,0.00045801,30]
[356377253,1742339633741,-346.02921254,0.00045809,30]
[356377254,1742339633760,-692.975311,0.00045839,30]
[356377255,1742339633776,-50000.0,0.0004587,4]
[356377256,1742339633791,-692.975311,0.00045879,30]
[356377257,1742339633805,-692.975311,0.00045885,30]
[356377258,1742339633822,-23409.78734323,0.0004589,30]
[356377259,1742339633838,-1707.24526954,0.0004589,30]
[356377260,1742339633852,-576.3068894,0.00045895,30]
[356377261,1742339633867,-87892.0,0.000459,2]
[356377262,1742339633882,-3702.22143121,0.00045907,30]
[356377263,1742339633897,-8348.40948344,0.00045922,30]
[356377264,1742339633913,-692.975311,0.00045923,30]
[356377265,1742339633928,-203.54380946,0.00045926,30]
[356377266,1742339633942,-855.46832933,0.00045928,30]
[356377267,1742339633956,-23409.78734323,0.0004595,30]
[356377268,1742339633970,-203.54380946,0.00045956,30]
[356377269,1742339633984,-346.02921254,0.00045963,30]
[356377270,1742339633998,-262.35821465,0.00045967,30]
[356377271,1742339634015,-5926.74189602,0.00045971,30]
[356377272,1742339634030,-5926.74189602,0.00045971,30]
[356377273,1742339634044,-1707.24526954,0.00045973,30]
[356377274,1742339634059,-23409.78734323,0.00045976,30]
[356377275,1742339634072,-262.35821465,0.0004598,30]
[356377276,1742339634087,-855.46832933,0.00045988,30]
[356377277,1742339634101,-8348.40948344,0.00045992,30]
[356377278,1742339634116,-1707.24526954,0.00045997,30]
[356377279,1742339634130,-5000000.0,0.00045999,120]
[356377280,1742339634144,-50000.0,0.00046,46]
[356377281,1742339634159,-203.54380946,0.00046,30]
[356377282,1742339634173,-50000.0,0.00046,28]
[356377283,1742339634188,-2000.0,0.00046,120]
[356377284,1742339634202,-200.0,0.00046,120]
[356377285,1742339634216,-1000000.0,0.00046,30]
[356377286,1742339634231,-500.0,0.00046,120]
[356377287,1742339634244,-3333.0,0.00046,30]
[356377288,1742339634259,-237.0,0.00046,120]
[356377289,1742339634273,-1592.57073959,0.00046,120]
[356377290,1742339634287,-2097.4768182,0.00046,120]
[356377291,1742339634302,-1443.21804797,0.00046,120]
[356377292,1742339634316,-10576.81,0.00046,30]
[356377293,1742339634331,-2115.36,0.00046,30]
[356377294,1742339634345,-588.39,0.00046027,120]
[356377295,1742339634359,-500.0,0.00046027,120]
[356377296,1742339634374,-695.53,0.00046027,120]
[356377297,1742339634387,-500.0,0.00046027,120]
[356377298,1742339634401,-599.27,0.00046027,120]
[356377299,1742339634416,-500.0,0.00046027,120]
[356377300,1742339634430,-675.48,0.00046027,120]
[356377301,1742339634444,-2951.2,0.00046027,120]
[356377302,1742339634457,-3587.64,0.00046027,120]
[356377303,1742339634471,-731.85,0.00046027,120]
[356377304,1742339634486,-500.0,0.00046027,120]
[356377305,1742339634501,-1000.25,0.00046027,120]
[356377306,1742339634514,-150.0,0.00046027,120]
[356377307,1742339634529,-500.0,0.00046027,120]
[356377308,1742339634543,-4954.91,0.00046027,120]
[356377309,1742339634556,-515.86,0.00046027,120]
[356377310,1742339634571,-1142.14,0.00046027,120]
[356377311,1742339634584,-1372.58,0.00046027,120]
[356377312,1742339634600,-2157.42,0.00046027,120]
[356377313,1742339634615,-500.0,0.00046027,120]
[356377314,1742339634630,-1414.54,0.00046027,120]
[356377315,1742339634645,-1247.27,0.00046027,120]
[356377316,1742339634661,-571.9,0.00046027,120]
[356377317,1742339634675,-1731.09,0.00046027,120]
[356377318,1742339634689,-497.86298857,0.00046027,120]
[356377319,1742339634702,-690.54,0.00046027,120]
[356377320,1742339634716,-1601.13,0.00046027,120]
[356377321,1742339634730,-647.8,0.00046027,120]
[356377322,1742339634745,-619.12,0.00046027,120]
[356377323,1742339634759,-500.0,0.00046027,120]
[356377324,1742339634774,-657.42,0.00046027,120]
[356377325,1742339634788,-1197.86,0.00046027,120]
[356377326,1742339634803,-1514.57,0.00046027,120]
[356377327,1742339634817,-296.33646033,0.00046027,120]
[356377328,1742339634833,-500.0,0.00046027,120]
[356377329,1742339634848,-1264.5,0.00046027,120]
[356377330,1742339634862,-500.0,0.00046027,120]
[356377331,1742339634878,-677.1,0.00046027,120]
[356377332,1742339634892,-538.01,0.00046027,120]
[356377333,1742339634906,-1026.81,0.00046027,120]
[356377334,1742339634922,-1290.9,0.00046027,120]
[356377335,1742339634936,-999.0,0.00046027,120]
[356377336,1742339634948,-2000.0,0.00046075,8]
[356377337,1742339634962,-258.42,0.00046086,120]
[356377338,1742339634976,-5105.51130211,0.000461,90]
[356377339,1742339634990,-524.31716385,0.00046107,10]
[356377340,1742339635004,-1473.25957312,0.00046189,40]
[356377341,1742339635020,-108306.9535171,0.000462,30]
[356377342,1742339635035,-857.44,0.00046222,2]
[356377343,1742339635049,-588.39,0.00046301,120]
[356377344,1742339635063,-587.35161301,0.00046301,120]
[356377345,1742339635077,-695.53,0.00046301,120]
[356377346,1742339635091,-500.0,0.00046301,120]
[356377347,1742339635105,-599.27,0.00046301,120]
[356377348,1742339635118,-500.0,0.00046301,120]
[356377349,1742339635132,-675.48,0.00046301,120]
[356377350,1742339635146,-2951.2,0.00046301,120]
[356377351,1742339635159,-3587.64,0.00046301,120]
[356377352,1742339635173,-731.85,0.00046301,120]
[356377353,1742339635187,-500.0,0.00046301,120]
[356377354,1742339635200,-1000.25,0.00046301,120]
[356377355,1742339635214,-150.0,0.00046301,120]
[356377356,1742339635228,-647.94927356,0.00046301,120]
[356377357,1742339635241,-4954.91,0.00046301,120]
[356377358,1742339635255,-515.86,0.00046301,120]
[356377359,1742339635269,-1142.14,0.00046301,120]
[356377360,1742339635282,-1372.58,0.00046301,120]
[356377361,1742339635297,-2157.42,0.00046301,120]
[356377362,1742339635311,-500.0,0.00046301,120]
[356377363,1742339635326,-1414.54,0.00046301,120]
[356377364,1742339635340,-1247.27,0.00046301,120]
[356377365,1742339635354,-571.9,0.00046301,120]
[356377366,1742339635367,-1731.09,0.00046301,120]
[356377367,1742339635382,-690.54,0.00046301,120]
[356377368,1742339635395,-1601.13,0.00046301,120]
[356377369,1742339635409,-647.8,0.00046301,120]
[356377370,1742339635422,-619.12,0.00046301,120]
[356377371,1742339635437,-500.0,0.00046301,120]
[356377372,1742339635452,-657.42,0.00046301,120]
[356377373,1742339635465,-1197.86,0.00046301,120]
[356377374,1742339635479,-1514.57,0.00046301,120]
[356377375,1742339635493,-500.0,0.00046301,120]
[356377376,1742339635508,-1264.5,0.00046301,120]
[356377377,1742339635522,-500.0,0.00046301,120]
[356377378,1742339635536,-677.1,0.00046301,120]
[356377379,1742339635550,-538.01,0.00046301,120]
[356377380,1742339635564,-1026.81,0.00046301,120]
[356377381,1742339635580,-1290.9,0.00046301,120]
[356377382,1742339635594,-10000.0,0.000464,120]
[356377383,1742339635608,-999.0,0.00046438,120]
[356377384,1742339635622,-475387.83962943,0.00046469,120]
[356377385,1742339636899,-592.01052371,0.00046469,120]
[356377386,1742339636927,-392.447266,0.00035616,7]
[356377387,1742339636937,-1990.52308907,0.00036164,12]
[356377388,1742339636949,-1729.07691093,0.00036164,12]
[356377389,1742339636959,-119.88219706,0.00046469,120]
[356377391,1742340257151,-154.41,0.00014693,2]
[356377392,1742340257173,-250.0,0.0001477,2]
[356377393,1742340257196,-150.0,0.0001477,2]
[356377394,1742340257667,-250.0,0.00015,2]
[356377395,1742340257691,-250.0,0.00015308,2]
[356377396,1742340257714,-150.0,0.00015308,2]
[356377397,1742340257736,-250.0,0.00016163,2]